fUSD/lending_fUSD_20260130
["ID","MTS","AMOUNT","RATE_DAILY","PERIOD"]
[404078193,1769793040515,-541.12934131,0.00014373,2]
[404078194,1769793040524,-500.0,0.00014373,2]
[404078195,1769793040534,-500.0,0.00014373,2]
[404078196,1769793040545,-500.0,0.00014373,2]
[404078197,1769793040555,-500.0,0.00014373,2]
[404078198,1769793040564,-500.0,0.00014373,2]
[404078199,1769793040573,-518.22564834,0.00014373,2]
[404078200,1769793040582,-500.0,0.00014373,2]
[404078201,1769793040592,-500.0,0.00014373,2]
[404078202,1769793040601,-500.0,0.00014373,2]
[404078203,1769793040610,-500.0,0.00014373,2]
[404078204,1769793040619,-500.0,0.00014373,2]
[404078205,1769793040628,-244.79656408,0.00014373,2]
[404078206,1769793040638,-500.0,0.00014373,2]
[404078207,1769793040647,-500.0,0.00014373,2]
[404078208,1769793040657,-500.0,0.00014373,2]
[404078209,1769793040666,-500.0,0.00014373,2]
[404078210,1769793040675,-500.0,0.00014373,2]
[404078211,1769793040685,-396.00925811,0.00014373,2]
[404078212,1769793040695,-500.0,0.00014373,2]
[404078213,1769793040706,-500.0,0.00014373,2]
[404078214,1769793040715,-500.0,0.00014373,2]
[404078215,1769793040724,-500.0,0.00014373,2]
[404078216,1769793040733,-500.0,0.00014373,2]
[404078217,1769793040742,-500.0,0.00014373,2]
[404078218,1769793040752,-500.0,0.00014373,2]
[404078219,1769793040762,-500.0,0.00014373,2]
[404078220,1769793040772,-500.0,0.00014373,2]
[404078221,1769793040781,-500.0,0.00014373,2]
[404078222,1769793040791,-1134.55,0.00014373,2]
[404078223,1769793040800,-500.0,0.00014373,2]
[404078224,1769793040810,-500.0,0.00014373,2]
[404078225,1769793040819,-500.0,0.00014373,2]
[404078226,1769793040830,-500.0,0.00014373,2]
[404078227,1769793040839,-500.0,0.00014373,2]
[404078228,1769793040849,-500.0,0.00014373,2]
[404078229,1769793040858,-500.0,0.00014373,2]
[404078230,1769793040867,-500.0,0.00014373,2]
[404078231,1769793040876,-500.0,0.00014373,2]
[404078232,1769793040886,-500.0,0.00014373,2]
[404078233,1769793040897,-500.0,0.00014373,2]
[404078234,1769793040906,-500.0,0.00014373,2]
[404078235,1769793040915,-208.07287078,0.00014373,2]
[404078236,1769793040924,-500.0,0.00014373,2]
[404078237,1769793040933,-500.0,0.00014373,2]
[404078238,1769793040943,-466.47309168,0.00014373,2]
[404078239,1769793040952,-500.0,0.00014373,2]
[404078240,1769793040963,-500.0,0.00014373,2]
[404078241,1769793040972,-500.0,0.00014373,2]
[404078242,1769793040982,-500.0,0.00014373,2]
[404078243,1769793040992,-500.0,0.00014373,2]
[404078244,1769793041002,-500.0,0.00014373,2]
[404078245,1769793041012,-436.47012991,0.00014373,2]
[404078246,1769793041021,-500.0,0.00014373,2]
[404078247,1769793041030,-500.0,0.00014373,2]
[404078248,1769793041040,-326.5559361,0.00014373,2]
[404078249,1769793041049,-500.0,0.00014373,2]
[404078250,1769793041058,-500.0,0.00014373,2]
[404078251,1769793041068,-500.0,0.00014373,2]
[404078252,1769793041077,-500.0,0.00014373,2]
[404078253,1769793041086,-500.0,0.00014373,2]
[404078254,1769793041095,-500.0,0.00014373,2]
[404078255,1769793041104,-500.0,0.00014373,2]
[404078256,1769793041113,-500.0,0.00014373,2]
[404078257,1769793041122,-151.0,0.00014374,2]
[404078258,1769793041131,-151.0,0.00014374,2]
[404078259,1769793041140,-500.0,0.00014399,2]
[404078260,1769793041149,-268.77195069,0.00014399,2]
[404078261,1769793041159,-500.0,0.00014399,2]
[404078262,1769793041168,-500.0,0.00014399,2]
[404078263,1769793041177,-500.0,0.00014399,2]
[404078264,1769793041186,-500.0,0.00014399,2]
[404078265,1769793041195,-500.0,0.00014399,2]
[404078266,1769793041205,-153.23607155,0.00014399,2]
[404078267,1769793041215,-150.0,0.00014399,2]
[404078268,1769793041224,-150.0,0.00014399,2]
[404078269,1769793041234,-500.0,0.00014399,2]
[404078270,1769793041243,-500.0,0.00014399,2]
[404078271,1769793041253,-150.0,0.00014399,2]
[404078272,1769793041263,-824.0,0.000144,2]
[404078273,1769793041274,-150.0,0.00014409,2]
[404078274,1769793041284,-500.0,0.00014409,2]
[404078275,1769793041295,-383.0,0.00014415,2]
[404078276,1769793041305,-166.66,0.00014427,2]
[404078277,1769793041314,-312.0,0.00014444,2]
[404078278,1769793041323,-500.0,0.00014453,2]
[404078279,1769793041333,-489.31012859,0.00014453,2]
[404078280,1769793041343,-215.78291863,0.00014453,2]
[404078281,1769793041352,-500.0,0.00014453,2]
[404078282,1769793041362,-500.0,0.00014453,2]
[404078283,1769793041371,-500.0,0.00014453,2]
[404078284,1769793041382,-150.0,0.00014454,2]
[404078285,1769793041391,-150.0,0.00014454,2]
[404078286,1769793041403,-500.0,0.00014454,2]
[404078287,1769793041413,-280.11730134,0.00014454,2]
[404078288,1769793041422,-500.0,0.00014454,2]
[404078289,1769793041432,-150.0,0.00014463,2]
[404078290,1769793041441,-150.0,0.00014463,2]
[404078291,1769793041451,-500.0,0.00014464,2]
[404078292,1769793041462,-1000.0,0.00014474,2]
[404078293,1769793041472,-4571.7758,0.00014474,2]
[404078294,1769793041484,-500.0,0.00014508,2]
[404078295,1769793041495,-500.0,0.00014508,2]
[404078296,1769793041504,-500.0,0.00014508,2]
[404078297,1769793041515,-500.0,0.00014508,2]
[404078298,1769793041524,-200.0,0.00014509,2]
[404078299,1769793041534,-171.51596019,0.00014509,2]
[404078300,1769793041543,-572.0,0.00014509,2]
[404078301,1769793041553,-351.8353746,0.00014509,2]
[404078302,1769793041563,-150.0,0.00014518,2]
[404078303,1769793041572,-14659.04660245,0.00014532,2]
[404078304,1769793041582,-300.0,0.00014543,2]
[404078305,1769793041591,-1676.0,0.00014551,2]
[404078306,1769793041601,-500.0,0.00014563,2]
[404078307,1769793041610,-500.0,0.00014563,2]
[404078308,1769793041620,-500.0,0.00014563,2]
[404078309,1769793041629,-500.0,0.00014563,2]
[404078310,1769793041639,-250.0,0.00014573,2]
[404078311,1769793041648,-500.0,0.00014573,2]
[404078312,1769793041657,-721.0,0.0001458,2]
[404078313,1769793041667,-14955.84696307,0.00014588,2]
[404078314,1769793041676,-1744.89040055,0.00014594,2]
[404078315,1769793041685,-223.0,0.00014607,2]
[404078316,1769793041695,-521.0,0.00014609,2]
[404078317,1769793041704,-500.0,0.00014618,2]
[404078318,1769793041714,-500.0,0.00014618,2]
[404078319,1769793041723,-500.0,0.00014618,2]
[404078320,1769793041733,-500.0,0.00014618,2]
[404078321,1769793041742,-271.0,0.00014636,2]
[404078322,1769793041751,-790.0,0.00014644,2]
[404078323,1769793041760,-1134.55,0.00014647,2]
[404078324,1769793041769,-2986.53360192,0.00014652,2]
[404078325,1769793041779,-500.0,0.00014673,2]
[404078326,1769793041787,-500.0,0.00014673,2]
[404078327,1769793041797,-500.0,0.00014673,2]
[404078328,1769793041807,-500.0,0.00014673,2]
[404078329,1769793041816,-500.0,0.00014673,2]
[404078330,1769793041825,-500.0,0.00014673,2]
[404078331,1769793041834,-563.52650006,0.00014673,2]
[404078332,1769793041844,-1809.0,0.00014673,2]
[404078333,1769793041854,-1680.0,0.00014698,2]
[404078334,1769793041863,-1985.0,0.00014703,2]
[404078335,1769793041873,-166.66,0.00014713,2]
[404078336,1769793041882,-500.0,0.00014727,2]
[404078337,1769793041892,-500.0,0.00014727,2]
[404078338,1769793041903,-500.0,0.00014727,2]
[404078339,1769793041913,-500.0,0.00014727,2]
[404078340,1769793041922,-1365.0,0.00014732,2]
[404078341,1769793041931,-500.0,0.00014738,2]
[404078342,1769793041941,-1363.0,0.00014761,2]
[404078343,1769793041951,-500.0,0.00014782,2]
[404078344,1769793041962,-500.0,0.00014782,2]
[404078345,1769793041972,-500.0,0.00014782,2]
[404078346,1769793041981,-404.25101827,0.00014782,2]
[404078347,1769793041991,-276.0,0.0001479,2]
[404078348,1769793042000,-1463.0,0.0001482,2]
[404078349,1769793042010,-179.11725287,0.00014837,2]
[404078350,1769793042020,-500.0,0.00014837,2]
[404078351,1769793042029,-500.0,0.00014837,2]
[404078352,1769793042039,-500.0,0.00014849,2]
[404078353,1769793042049,-364.9,0.0001486,2]
[404078354,1769793042058,-500.0,0.00014892,2]
[404078355,1769793042068,-500.0,0.00014892,2]
[404078356,1769793042077,-438.37248682,0.00014899,2]
[404078357,1769793042087,-1134.55,0.00014921,2]
[404078358,1769793042096,-189.75735068,0.00014947,2]
[404078359,1769793042106,-500.0,0.00014947,2]
[404078360,1769793042116,-14659.04660245,0.00014953,2]
[404078361,1769793042126,-4101.7754589,0.00014974,2]
[404078362,1769793042135,-166.66,0.00014999,2]
[404078363,1769793042146,-500.0,0.00015001,2]
[404078364,1769793042156,-14955.84696307,0.00015002,2]
[404078365,1769793042166,-500.0,0.00015012,2]
[404078366,1769793042176,-250.0,0.00015017,2]
[404078367,1769793042185,-567.0,0.00015056,2]
[404078368,1769793042195,-427.02,0.00015079,2]
[404078369,1769793042412,-2986.53360192,0.00015194,2]
[404078370,1769793042425,-1134.55,0.00015195,2]
[404078371,1769793042436,-747.19891397,0.00015199,2]
[404078381,1769793042684,-151.0,0.0001528,2]
[404078383,1769793042695,-151.0,0.0001528,2]
[404078384,1769793042704,-500.0,0.00015286,2]
[404078385,1769793042715,-255.0,0.0001531,2]
[404078386,1769793042724,-14659.04660245,0.00015374,2]
[404078387,1769793042734,-502.0,0.00015397,2]
[404078389,1769793042745,-35744.0,0.00015407,2]
[404078391,1769793042756,-14955.84696307,0.00015416,2]
[404078392,1769793042766,-1134.55,0.00015469,2]
[404078393,1769793042775,-151.0,0.00015486,2]
[404078394,1769793042785,-151.0,0.00015486,2]
[404078395,1769793042794,-438.37248682,0.00015499,2]
[404078396,1769793042803,-195.0,0.00015521,2]
[404078397,1769793042812,-2500.0,0.00015522,2]
[404078398,1769793042822,-2814.99303648,0.00015582,2]
[404078400,1769793042831,-7428.81116082,0.00015582,2]
[404078401,1769793042840,-300.0,0.00015609,2]
[404078402,1769793042850,-195.0,0.00015609,2]
[404078404,1769793042858,-500.0,0.00015609,2]
[404078406,1769793042868,-600.0,0.00015609,2]
[404078409,1769793042877,-193.0,0.00015609,2]
[404078411,1769793042886,-291.51281962,0.00015609,2]
[404078413,1769793042895,-250.0,0.00015617,2]
[404078416,1769793042905,-488.14572893,0.00015619,2]
[404078419,1769793042916,-250.0,0.00015619,2]
[404078421,1769793042926,-1000.0,0.000157,2]
[404078423,1769793042935,-4101.7754589,0.00015706,2]
[404078425,1769793042945,-2986.53360192,0.00015735,2]
[404078427,1769793042955,-1134.55,0.00015743,2]
[404078429,1769793042965,-14931.7735835,0.00015766,2]
[404078431,1769793042974,-57092.1119949,0.00015784,2]
[404078432,1769793042983,-14659.04660245,0.00015795,2]
[404078433,1769793042993,-14955.84696307,0.0001583,2]
[404078434,1769793043002,-500.0,0.00015864,2]
[404078435,1769793043012,-1503.08,0.00015924,2]
[404078436,1769793043022,-652.99854233,0.0001596,2]
[404078437,1769793043031,-1000.0,0.00016,2]
[404078438,1769793043041,-1134.55,0.00016017,2]
[404078439,1769793043051,-1000.0,0.0001607,2]
[404078440,1769793043061,-1000.0,0.00016098,2]
[404078441,1769793043070,-747.19891397,0.000161,2]
[404078442,1769793043079,-438.37248682,0.000161,2]
[404078443,1769793043089,-500.0,0.00016115,2]
[404078444,1769793043100,-3404.72,0.00016116,2]
[404078445,1769793043110,-2351.0,0.00016168,2]
[404078446,1769793043119,-14659.04660245,0.00016216,2]
[404078447,1769793043130,-14955.84696307,0.00016244,2]
[404078448,1769793043139,-1000.0,0.0001627,2]
[404078449,1769793043149,-2986.53360192,0.00016276,2]
[404078450,1769793043158,-1134.58649203,0.00016291,2]
[404078451,1769793043168,-500.0,0.00016373,2]
[404078452,1769793043177,-568.87365999,0.00016373,2]
[404078453,1769793043186,-500.0,0.00016373,2]
[404078454,1769793043195,-500.0,0.00016373,2]
[404078455,1769793043204,-500.0,0.00016373,2]
[404078456,1769793043215,-164.62391136,0.00016373,2]
[404078457,1769793043224,-558.9380785,0.00016373,2]
[404078458,1769793043233,-500.0,0.00016373,2]
[404078459,1769793043243,-500.0,0.00016373,2]
[404078460,1769793043252,-500.0,0.00016373,2]
[404078461,1769793043262,-160.21744138,0.00016373,2]
[404078462,1769793043271,-500.0,0.00016373,2]
[404078463,1769793043280,-177.64323639,0.00016373,2]
[404078464,1769793043290,-500.0,0.00016373,2]
[404078465,1769793043299,-500.0,0.00016373,2]
[404078466,1769793043309,-160.21943413,0.00016373,2]
[404078467,1769793043318,-160.32431704,0.00016373,2]
[404078468,1769793043327,-500.0,0.00016373,2]
[404078469,1769793043336,-500.0,0.00016373,2]
[404078470,1769793043346,-500.0,0.00016373,2]
[404078471,1769793043355,-217.57575976,0.00016373,2]
[404078472,1769793043364,-500.0,0.00016373,2]
[404078473,1769793043374,-500.0,0.00016373,2]
[404078474,1769793043383,-500.60369246,0.00016373,2]
[404078475,1769793043393,-500.0,0.00016373,2]
[404078476,1769793043402,-500.0,0.00016373,2]
[404078477,1769793043414,-500.0,0.00016373,2]
[404078478,1769793043423,-500.0,0.00016373,2]
[404078479,1769793043432,-500.0,0.00016373,2]
[404078480,1769793043442,-500.0,0.00016373,2]
[404078481,1769793043451,-500.0,0.00016373,2]
[404078482,1769793043461,-163.00594696,0.00016373,2]
[404078483,1769793043471,-500.0,0.00016373,2]
[404078484,1769793043482,-500.0,0.00016373,2]
[404078485,1769793043491,-500.0,0.00016373,2]
[404078486,1769793043500,-239.55126374,0.00016373,2]
[404078487,1769793043511,-500.0,0.00016373,2]
[404078488,1769793043521,-225.37911043,0.00016373,2]
[404078489,1769793043531,-500.0,0.00016373,2]
[404078490,1769793043539,-500.0,0.00016373,2]
[404078491,1769793043550,-500.0,0.00016373,2]
[404078492,1769793043560,-500.0,0.00016373,2]
[404078493,1769793043570,-500.0,0.00016373,2]
[404078494,1769793043580,-500.0,0.00016373,2]
[404078495,1769793043591,-500.0,0.00016373,2]
[404078496,1769793043601,-169.60462217,0.00016373,2]
[404078497,1769793043610,-166.21493216,0.00016373,2]
[404078498,1769793043620,-503.15498018,0.00016373,2]
[404078499,1769793043629,-500.0,0.00016373,2]
[404078500,1769793043639,-500.0,0.00016373,2]
[404078501,1769793043648,-772.81,0.00016389,2]
[404078502,1769793043658,-4101.7754589,0.00016437,2]
[404078503,1769793043667,-2000.0,0.00016438,2]
[404078504,1769793043676,-500.0,0.00016438,2]
[404078505,1769793043685,-500.0,0.00016438,2]
[404078506,1769793043694,-417.90244786,0.00016438,2]
[404078507,1769793043703,-500.0,0.00016438,2]
[404078508,1769793043713,-500.0,0.00016438,2]
[404078509,1769793043722,-500.0,0.00016438,2]
[404078510,1769793043731,-500.0,0.00016438,2]
[404078511,1769793043740,-500.0,0.00016438,2]
[404078512,1769793043749,-500.0,0.00016438,2]
[404078513,1769793043758,-500.0,0.00016438,2]
[404078514,1769793043767,-503.60266732,0.00016438,2]
[404078515,1769793043776,-500.0,0.00016438,2]
[404078516,1769793043785,-500.0,0.00016438,2]
[404078517,1769793043794,-500.0,0.00016438,2]
[404078518,1769793043803,-500.0,0.00016438,2]
[404078519,1769793043813,-433.0,0.00016516,2]
[404078520,1769793043823,-364.9,0.00016548,2]
[404078521,1769793043832,-14659.04660245,0.00016637,2]
[404078522,1769793043842,-14955.84696307,0.00016658,2]
[404078523,1769793043851,-772.81,0.00016663,2]
[404078524,1769793043860,-3671.0,0.00016691,2]
[404078525,1769793043871,-438.37248682,0.000167,2]
[404078526,1769793043880,-163.0,0.0001672,2]
[404078527,1769793043890,-163.0,0.0001672,2]
[404078528,1769793043899,-2986.53360192,0.00016817,2]
[404078529,1769793043909,-500.4902994,0.00016921,2]
[404078530,1769793043918,-1000.0,0.00016921,2]
[404078531,1769793043927,-1000.0,0.00016921,2]
[404078532,1769793043937,-541.28684359,0.00016921,2]
[404078533,1769793043946,-500.0,0.00016921,2]
[404078534,1769793043957,-503.09870012,0.00016921,2]
[404078535,1769793043967,-1000.0,0.00016921,2]
[404078536,1769793043976,-500.86269689,0.00016921,2]
[404078537,1769793043985,-1000.0,0.00016921,2]
[404078538,1769793043995,-1000.91709451,0.00016921,2]
[404078539,1769793044004,-459.6118856,0.00016921,2]
[404078540,1769793044013,-1000.0,0.00016921,2]
[404078541,1769793044024,-1000.0,0.00016921,2]
[404078542,1769793044033,-1000.0,0.00016921,2]
[404078543,1769793044043,-1009.36195064,0.00016921,2]
[404078544,1769793044051,-1000.28855452,0.00016921,2]
[404078545,1769793044061,-1000.81154381,0.00016921,2]
[404078546,1769793044070,-1000.0,0.00016921,2]
[404078547,1769793044080,-500.0,0.00016921,2]
[404078548,1769793044091,-804.05633745,0.00016921,2]
[404078549,1769793044101,-1000.0,0.00016921,2]
[404078550,1769793044110,-1000.0,0.00016921,2]
[404078551,1769793044120,-1000.0,0.00016921,2]
[404078552,1769793044129,-1000.0,0.00016921,2]
[404078553,1769793044138,-1000.0,0.00016921,2]
[404078554,1769793044148,-504.68661395,0.00016921,2]
[404078555,1769793044158,-1000.0,0.00016921,2]
[404078556,1769793044167,-401.53067419,0.00016921,2]
[404078557,1769793044178,-1000.79205538,0.00016921,2]
[404078558,1769793044187,-1000.0,0.00016921,2]
[404078559,1769793044196,-203.98074386,0.00016921,2]
[404078560,1769793044205,-1000.0,0.00016921,2]
[404078561,1769793044215,-1000.0,0.00016921,2]
[404078562,1769793044225,-877.26188408,0.00016921,2]
[404078563,1769793044235,-183.75,0.00016925,2]
[404078564,1769793044244,-427.02,0.00016931,2]
[404078565,1769793044254,-772.81,0.00016937,2]
[404078566,1769793044263,-747.19891397,0.00017,2]
[404078567,1769793044273,-14659.04660245,0.00017058,2]
[404078568,1769793044283,-14955.84696307,0.00017072,2]
[404078569,1769793044292,-13105.30345281,0.00017082,2]
[404078570,1769793044302,-19604.75018869,0.00017082,2]
[404078571,1769793044311,-26525.9214,0.00017082,2]
[404078572,1769793044321,-322.6107,0.00017099,2]
[404078573,1769793044330,-578.20924308,0.00017099,2]
[404078574,1769793044341,-174.61919141,0.00017099,2]
[404078575,1769793044351,-151.0,0.00017099,2]
[404078576,1769793044361,-156.587,0.00017099,2]
[404078577,1769793044370,-854.2589148,0.00017099,2]
[404078578,1769793044380,-162.380719,0.00017099,2]
[404078579,1769793044389,-250.0,0.00017099,2]
[404078580,1769793044399,-157.32475157,0.00017099,2]
[404078581,1769793044408,-209.40437684,0.00017099,2]
[404078582,1769793044417,-217.15233878,0.00017154,2]
[404078583,1769793044427,-4101.7754589,0.00017169,2]
[404078584,1769793044436,-200.19033336,0.00017174,2]
[404078585,1769793044446,-500.0,0.00017205,2]
[404078586,1769793044455,-225.18697532,0.00017209,2]
[404078587,1769793044466,-772.81,0.00017211,2]
[404078588,1769793044478,-200.0,0.00017216,2]
[404078589,1769793044489,-802.8985945,0.00017222,2]
[404078590,1769793044498,-14931.7735835,0.00017231,2]
[404078591,1769793044507,-57092.1119949,0.0001725,2]
[404078592,1769793044518,-200.0,0.00017259,2]
[404078593,1769793044528,-233.51889341,0.00017264,2]
[404078594,1769793044537,-438.37248682,0.000173,2]
[404078595,1769793044547,-1898.85844425,0.00017302,2]
[404078596,1769793044557,-242.15909246,0.00017319,2]
[404078597,1769793044566,-2986.53360192,0.00017359,2]
[404078598,1769793044575,-251.11897888,0.00017374,2]
[404078599,1769793044584,-153.53,0.000174,2]
[404078600,1769793044594,-260.4103811,0.00017429,2]
[404078601,1769793044603,-500.0,0.00017468,2]
[404078602,1769793044613,-1000.8272521,0.00017468,2]
[404078603,1769793044623,-377.4,0.00017468,2]
[404078604,1769793044632,-1500.0,0.00017468,2]
[404078605,1769793044643,-1505.10384072,0.00017468,2]
[404078606,1769793044654,-1500.0,0.00017468,2]
[404078607,1769793044663,-1500.0,0.00017468,2]
[404078608,1769793044672,-656.65111135,0.00017468,2]
[404078609,1769793044681,-1500.0,0.00017468,2]
[404078610,1769793044691,-1000.73878486,0.00017468,2]
[404078611,1769793044700,-1500.0,0.00017468,2]
[404078612,1769793044710,-1000.71065871,0.00017468,2]
[404078613,1769793044719,-1500.0,0.00017468,2]
[404078614,1769793044729,-1500.0,0.00017468,2]
[404078615,1769793044738,-580.80754144,0.00017468,2]
[404078616,1769793044747,-1500.0,0.00017468,2]
[404078617,1769793044756,-206.11887871,0.00017468,2]
[404078618,1769793044765,-14659.04660245,0.00017479,2]
[404078619,1769793044774,-270.0455652,0.00017484,2]
[404078620,1769793044783,-772.81,0.00017485,2]
[404078621,1769793044792,-14955.84696307,0.00017486,2]
[404078622,1769793044802,-364.9,0.00017487,2]
[404078623,1769793044812,-500.0,0.00017499,2]
[404078624,1769793044822,-1145.0448999,0.00017532,2]
[404078625,1769793044831,-1016.42266618,0.00017532,2]
[404078626,1769793044840,-1095.95157612,0.00017532,2]
[404078627,1769793044850,-1124.81433135,0.00017532,2]
[404078628,1769793044862,-1039.6754902,0.00017532,2]
[404078629,1769793044871,-1105.5571743,0.00017532,2]
[404078630,1769793044881,-1113.53466496,0.00017532,2]
[404078631,1769793044891,-1081.59959402,0.00017532,2]
[404078632,1769793044902,-1074.30453668,0.00017532,2]
[404078633,1769793044912,-1118.68374121,0.00017532,2]
[404078634,1769793044923,-1019.21234957,0.00017532,2]
[404078635,1769793044932,-1003.84441625,0.00017532,2]
[404078636,1769793044943,-1090.31298697,0.00017532,2]
[404078637,1769793044953,-1063.56208129,0.00017532,2]
[404078638,1769793044963,-1106.71579557,0.00017532,2]
[404078639,1769793044973,-1075.71276945,0.00017532,2]
[404078640,1769793044982,-280.03725112,0.00017539,2]
[404078641,1769793044991,-500.0,0.00017548,2]
[404078642,1769793045000,-500.0,0.00017548,2]
[404078643,1769793045009,-500.0,0.00017548,2]
[404078644,1769793045018,-500.0,0.00017548,2]
[404078645,1769793045028,-290.39862941,0.00017594,2]
[404078646,1769793045037,-3948.368,0.00017644,2]
[404078647,1769793045047,-181.08010149,0.00017647,2]
[404078648,1769793045057,-885.86649465,0.00017647,2]
[404078649,1769793045067,-301.1433787,0.00017649,2]
[404078650,1769793045077,-2833.0,0.0001768,2]
[404078651,1769793045087,-299.796,0.00017726,2]
[404078652,1769793045096,-158.82094085,0.00017758,2]
[404078653,1769793045106,-772.81,0.00017759,2]
[404078654,1769793045119,-3292.0,0.00017784,2]
[404078655,1769793045129,-500.0,0.00017808,2]
[404078656,1769793045139,-307.09395,0.0001782,2]
[404078657,1769793045149,-307.09395,0.0001782,2]
[404078658,1769793045159,-736.0,0.00017822,2]
[404078659,1769793045170,-151.0,0.00017827,2]
[404078660,1769793045180,-109605.83836455,0.0001783,2]
[404078661,1769793045189,-183.75,0.00017849,2]
[404078662,1769793045198,-200.0,0.00017853,2]
[404078663,1769793045208,-1000.0,0.00017856,2]
[404078664,1769793045218,-200.0,0.00017856,2]
[404078665,1769793045227,-500.0,0.00017863,2]
[404078666,1769793045237,-500.0,0.00017865,2]
[404078667,1769793045246,-150.0,0.00017865,2]
[404078668,1769793045256,-200.0,0.0001787,2]
[404078669,1769793045265,-179.1508919,0.00017874,2]
[404078670,1769793045275,-494.33434811,0.00017892,2]
[404078671,1769793045285,-5549.67507167,0.00017892,2]
[404078672,1769793045294,-339.97413964,0.00017892,2]
[404078673,1769793045303,-10000.0,0.00017892,2]
[404078674,1769793045313,-494.3343481,0.00017896,2]
[404078675,1769793045323,-5549.67507167,0.00017896,2]
[404078676,1769793045332,-339.97413964,0.00017896,2]
[404078677,1769793045341,-500.0,0.00017899,2]
[404078678,1769793045350,-500.0,0.00017899,2]
[404078679,1769793045361,-25000.0,0.000179,3]
[404078680,1769793045371,-747.19891397,0.000179,2]
[404078681,1769793045381,-438.37248682,0.000179,2]
[404078682,1769793045390,-18557.99718755,0.000179,3]
[404078683,1769793045399,-14955.84696307,0.000179,2]
[404078684,1769793045409,-719.62920142,0.000179,3]
[404078685,1769793045419,-14659.04660245,0.000179,2]
[404078686,1769793045428,-165.50957456,0.000179,3]
[404078687,1769793045438,-2986.53360192,0.000179,2]
[404078688,1769793045447,-494.3343481,0.000179,2]
[404078689,1769793045457,-5549.67507167,0.000179,2]
[404078690,1769793045467,-339.97413964,0.000179,2]
[404078691,1769793045478,-4101.7754589,0.000179,2]
[404078692,1769793045487,-427.02,0.00017901,2]
[404078693,1769793045496,-500.0,0.00017918,2]
[404078694,1769793045506,-500.0,0.0001792,2]
[404078695,1769793045516,-500.0,0.00017972,2]
[404078696,1769793045525,-150.0,0.00017973,2]
[404078698,1769793045535,-500.0,0.00017973,2]
[404078699,1769793045544,-500.0,0.00017973,2]
[404078700,1769793045556,-500.0,0.00017973,2]
[404078701,1769793045565,-500.0,0.00017973,2]
[404078702,1769793045574,-500.0,0.00017973,2]
[404078704,1769793045583,-500.0,0.00017973,2]
[404078705,1769793045592,-500.0,0.00017973,2]
[404078706,1769793045601,-500.0,0.00017973,2]
[404078707,1769793045609,-500.0,0.00017973,2]
[404078708,1769793045618,-500.0,0.00017973,2]
[404078709,1769793045627,-500.0,0.00017973,2]
[404078710,1769793045637,-208.33059439,0.00017973,2]
[404078711,1769793045647,-500.0,0.00017973,2]
[404078712,1769793045657,-500.0,0.00017973,2]
[404078713,1769793045667,-500.0,0.00017973,2]
[404078714,1769793045677,-500.0,0.00017973,2]
[404078715,1769793045686,-500.0,0.00017973,2]
[404078716,1769793045696,-500.0,0.00017973,2]
[404078717,1769793045705,-500.0,0.00017973,2]
[404078718,1769793045717,-500.0,0.00017973,2]
[404078719,1769793045727,-161.90727761,0.00017973,2]
[404078720,1769793045736,-500.0,0.00017973,2]
[404078721,1769793045745,-500.0,0.00017973,2]
[404078723,1769793045755,-161.46714206,0.00017973,2]
[404078724,1769793045765,-500.0,0.00017973,2]